Cogmind - Beta 10.2 @@@ ROGUE MODE // 2021.12.24 @ 11:16:01 Player: DDRAGON Result: Destroyed by Y-45 Defender with Beam Rifle Performance ------------- Evolutions (1) 500 Regions Visited (2) 400 Robots Destroyed (27) 135 Value Destroyed (489) 489 Prototype IDs (1) 20 Alien Tech Used (0) 0 Bonus (0) 0 TOTAL SCORE: 1544 Bonus ------- None Cogmind --------- Core Integrity 0/400 Matter 173/300 Energy 79/100 System Corruption 0% Temperature Cool (9) Movement Core (350) Ox6 Location -9/Materials Parts ------- > --- POWER (1) -------- (None) > --- PROPULSION (4) --- (None) > --- UTILITY (2) ------ Large Storage Unit Hardened Light Armor Plating > --- WEAPON (2) ------- (None) > --- INVENTORY (10) --- Targeting Computer Light Armor Plating Hardened Light Armor Plating Peak State ------------ > --- POWER ------------ Light Nuclear Core > --- PROPULSION ------- Compact Wheel Compact Wheel Hover Unit Hover Unit > --- UTILITY ---------- Large Storage Unit Hardened Light Armor Plating > --- WEAPON ----------- Particle Gun Particle Gun > --- INVENTORY -------- Hover Unit Hardened Light Armor Plating Hardened Light Armor Plating Particle Gun Particle Gun Grenade Launcher [Rating: 15] Favorites ----------- Power Light Nuclear Core Engine Light Ion Engine Power Core Light Nuclear Core Propulsion Compact Wheel Leg Aluminum Leg Wheel Compact Wheel Hover Unit Hover Unit Utility Large Storage Unit Device Weight Redist. System Storage Large Storage Unit Protection Hardened Light Armor Plating Weapon Particle Gun Energy Gun Particle Gun Ballistic Gun Shotgun Launcher Grenade Launcher Special Weapon Plasma Cutter Build | -11 -10 -9 ------- Run | Scr Mat Mat Slots Evolved 2 | . . 2 Power . | . . . Propulsion 2 | . . 2 Utility . | . . . Weapon . | . . . Parts Attached 30 | 6 8 16 Power 3 | 1 1 1 Engine 2 | 1 . 1 Core 1 | . 1 . Reactor . | . . . Propulsion 10 | 2 3 5 Treads . | . . . Leg 4 | 2 . 2 Wheel 3 | . 3 . Hover 3 | . . 3 Flight . | . . . Utility 5 | 1 2 2 Device 1 | . . 1 Storage 2 | 1 1 . Processor . | . . . Hackware . | . . . Protection 2 | . 1 1 Artifact . | . . . Weapon 12 | 2 2 8 Energy Gun 4 | . 2 2 Energy Cannon . | . . . Ballistic Gun 5 | 2 . 3 Ballistic Cannon . | . . . Launcher 1 | . . 1 Special Weapon 2 | . . 2 Impact Weapon . | . . . Slashing Weapon . | . . . Piercing Weapon . | . . . Special Melee Weapon . | . . . Unidentified Prototypes 1 | . . 1 Parts Lost 18 | . . 18 Power 2 | . . 2 Propulsion 5 | . . 5 Utility 1 | . . 1 Weapon 10 | . . 10 Highest Loss Streak 8 | . . 8 Average Slot Usage (%) 70 | . 93 52 Engine 2 | . 5 . Core 5 | . 8 2 Leg 2 | . 2 2 Wheel 11 | . 25 . Hover 4 | . . 8 Device 4 | . . 7 Storage 12 | . 14 11 Protection 5 | . 9 2 Energy Gun 11 | . 21 4 Ballistic Gun 9 | . 6 11 Naked Turns . | . . . Heaviest Build 32 | 11 32 32 Greatest Support 32 | 20 32 26 Greatest Overweight (x) 6 | 3 3 6 Average Overweight (x) . | . . 1 Largest Inventory Capacity 10 | 6 10 10 Average Capacity 9 | 5 9 10 Most Carried 8 | 2 8 8 Average Carried 5 | . 6 5 Final Capacity 10 | 6 10 10 Final Carried 8 | . 8 3 Class Distribution -------------------- 100% | Mutant Dominant Class ---------------- Mutant | -10/Materials Mutant | -9/Materials Resources | -11 -10 -9 ----------- Run | Scr Mat Mat Matter Collected 586 | 91 255 240 Remotely . | . . . Salvage Created 640 | 29 210 401 Parts 58 | 3 12 43 Haulers Intercepted . | . . . Recyclers Shooed . | . . . Parts Field Recycled . | . . . Retrieved Matter . | . . . Parts Self-Destructed . | . . . Prevented . | . . . Kills | -11 -10 -9 ------- Run | Scr Mat Mat Combat Hostiles Destroyed 18 | . 5 13 Guns 17 | . 5 12 AOE 1 | . . 1 Classes Destroyed 7 | 1 2 4 Worker 6 | . 1 5 Builder 1 | . . 1 Tunneler 1 | 1 . . Watcher 1 | . . 1 Swarmer 8 | . . 8 Grunt 8 | . 5 3 Sentry 2 | . . 2 Best Kill Streak 9 | 1 3 9 Combat Bots Only 5 | . 2 5 Max Kills in Single Turn 3 | 1 1 3 Gunslinging . | . . . Exploded 1 | . . 1 Melee . | . . . Uniques/NPCs Destroyed . | . . . Combat | -11 -10 -9 -------- Run | Scr Mat Mat Damage Taken 1958 | 6 349 1603 Core 560 | 1 146 413 Absorbed by Shields . | . . . Core Remaining (%) 70 | 99 41 . Volleys Fired 75 | 1 15 59 Largest 2 | 2 2 2 Hottest 130 | 40 130 130 Shots Fired 117 | 2 30 85 Gun 113 | 2 30 81 Cannon . | . . . Launcher 3 | . . 3 Special 1 | . . 1 Kinetic 65 | 2 2 61 Thermal 49 | . 28 21 Explosive 3 | . . 3 Electromagnetic . | . . . Robot Hit Streak 10 | 2 5 10 Robot Miss Streak 5 | . 3 5 Penetration Max . | . . . Secondary Targets 2 | . . 2 Max Gunslinging Chain 1 | . . 1 Shots Hit Robots 79 | 2 19 58 Core Hits 36 | 1 8 27 Critical Hits . | . . . Critical Kills . | . . . Critical Parts Destroyed . | . . . Melee Attacks . | . . . Impact . | . . . Slashing . | . . . Piercing . | . . . Sneak Attacks . | . . . Combat Hostiles . | . . . Follow-up Attacks . | . . . Damage Inflicted 1339 | 41 341 957 Guns 1128 | 28 312 788 Cannons . | . . . Explosions 166 | . . 166 Melee . | . . . Ramming 45 | 13 29 3 Kinetic 698 | 28 . 670 Thermal 430 | . 312 118 Explosive 166 | . . 166 Electromagnetic . | . . . Impact . | . . . Slashing . | . . . Piercing . | . . . Highest Corruption 2 | . 2 . Average Corruption 2 | . 2 . Corruption Purged . | . . . Overload Shots . | . . . Overflow Damage 9 | . . 9 Projectiles . | . . . Explosions 9 | . . 9 Melee . | . . . Knockbacks . | . . . Impact . | . . . Kinetic . | . . . Secondary . | . . . Self-Inflicted Damage 59 | 6 14 39 Shots 2 | . . 2 Rammed 11 | 2 4 5 Targets Rammed 11 | 2 4 5 Kicked . | . . . Crushed . | . . . Highest Temperature 598 | . 598 401 Average Temperature 193 | . 195 190 Received Heat Transfer 582 | . 165 417 Effects 18 | . 13 5 Shutdowns 5 | . 4 1 Energy Bleed 2 | . . 2 Interference 3 | . 3 . Matter Decay 5 | . 4 1 Damage (minor) 2 | . 1 1 Damage (core) 1 | . 1 . Siege Activations . | . . . Robots Corrupted . | . . . Combat Hostiles . | . . . Parts Fried . | . . . Impact Corruptions . | . . . Robots Melted . | . . . Combat Hostiles . | . . . Parts Melted 2 | . 2 . Heat Transferred 999 | . 740 259 Parts Sabotaged . | . . . Parts Stolen . | . . . Parts Stripped . | . . . Power Chain Reactions . | . . . Missiles Intercepted . | . . . Alert | -11 -10 -9 ------- Run | Scr Mat Mat Peak Influence 302 | 5 155 302 Initial 65 | . 3 65 Average 102 | 1 81 128 Maximum Alert Level 1 | . . 1 Low Security (%) 93 | 100 100 88 Level 1 6 | . . 11 Level 2 . | . . . Level 3 . | . . . Level 4 . | . . . Level 5 . | . . . High Security . | . . . Max Security . | . . . Squads Dispatched 4 | . 2 2 Investigation . | . . . Extermination . | . . . Reinforcement 4 | . 2 2 Assault . | . . . Garrison . | . . . Intercept . | . . . Construction Impeded . | . . . Haulers Reinforced . | . . . Stealth | -11 -10 -9 --------- Run | Scr Mat Mat Distress Signals 3 | . 1 2 Communications Jammed . | . . . Distress Signals . | . . . Times Spotted 32 | . 9 23 Peak Tracking Total 7 | . 3 7 Tactical Retreats 2 | . . 2 Traps | -11 -10 -9 ------- Run | Scr Mat Mat Traps Triggered . | . . . Indirectly . | . . . Trap Hack Attempts . | . . . Triggered . | . . . Disarmed . | . . . Reprogrammed . | . . . Reused . | . . . Traps Extracted . | . . . Installed . | . . . Triggered . | . . . Machines | -11 -10 -9 ---------- Run | Scr Mat Mat Machines Disabled . | . . . Max in Single Turn . | . . . Machines Sabotaged . | . . . Garrisons Compromised . | . . . Overloaded Fab Kills . | . . . Fab Network Shutdowns . | . . . Hacking | -11 -10 -9 --------- Run | Scr Mat Mat Machines Accessed 2 | . 2 . Terminals 2 | . 2 . Fabricators . | . . . Repair Stations . | . . . Recycling Units . | . . . Scanalyzers . | . . . Garrison Access . | . . . Total Hacks 4 | . 4 . Successful 2 | . 2 . Failed 2 | . 2 . Catastrophic . | . . . Database Lockouts . | . . . Manual . | . . . Terminals 4 | . 4 . Fabricators . | . . . Repair Stations . | . . . Recycling Units . | . . . Scanalyzers . | . . . Garrison Access . | . . . Terminal Hacks 2 | . 2 . Record 1 | . 1 . Zone Layout 1 | . 1 . Fabricator Hacks . | . . . Repair Station Hacks . | . . . Recycling Unit Hacks . | . . . Scanalyzer . | . . . Garrison Access Hacks . | . . . Unauthorized Hacks . | . . . Terminals . | . . . Fabricators . | . . . Repair Stations . | . . . Recycling Units . | . . . Scanalyzers . | . . . Garrison Access . | . . . Data Cores Recovered . | . . . Used . | . . . Hacking Detections 1 | . 1 . Full Trace Events 1 | . 1 . Feedback Events . | . . . Feedback Blocked . | . . . Robot Schematics Acquired . | . . . Robots Built . | . . . Matter . | . . . Time . | . . . Total Robot Build Rating . | . . . Part Schematics Acquired . | . . . Parts Built . | . . . Matter . | . . . Time . | . . . Total Part Build Rating . | . . . Parts Repaired . | . . . Time . | . . . Parts Recycled . | . . . Recycled Matter . | . . . Retrieved Matter . | . . . Retrieved Components . | . . . Parts Scanalyzed . | . . . Part Schematics Acquired . | . . . Parts Damaged . | . . . Bothacking | -11 -10 -9 ------------ Run | Scr Mat Mat Used RIF Installer . | . . . Robots Hacked . | . . . Non-combat . | . . . Combat . | . . . Robot Hacks Applied . | . . . Relay Couplers Released . | . . . Robots Rewired . | . . . Allies Hacked . | . . . Hacks Repelled . | . . . Allies | -11 -10 -9 -------- Run | Scr Mat Mat Total Allies . | . . . Largest Group . | . . . Highest-Rated Group . | . . . Highest-Rated Ally . | . . . Total Orders . | . . . Ally Attacks . | . . . Total Damage . | . . . Kills . | . . . Allies Corrupted . | . . . Allies Melted . | . . . Intel | -11 -10 -9 ------- Run | Scr Mat Mat Robot Analysis Total . | . . . Derelict Logs Recovered . | . . . Drone Launches . | . . . Drone Recoveries . | . . . Exploration | -11 -10 -9 ------------- Run | Scr Mat Mat Turns Passed 918 | 54 369 495 Spaces Moved 528 | 34 278 216 Core 143 | 20 1 122 Treads . | . . . Legs 48 | 14 18 16 Wheels 259 | . 259 . Hover 78 | . . 78 Flight . | . . . Fastest Speed 50 | 50 100 112 Average Speed 118 | 104 103 139 Slowest Speed 350 | 200 200 350 Overloaded Moves . | . . . Propulsion Burnouts . | . . . Robots Hopped . | . . . Cave-ins Triggered . | . . . Exploration Rate (%) 22 | 3 42 22 Regions Visited 2 Branch Regions . Pre-discovered Areas . | . . . Known Exits Taken . | . . . Unknown Exits Taken 2 | 1 1 . Scrap Searched . | . . . Spaces Dug . | . . . Terrain Destroyed 17 | . . 17 Melee . | . . . Projectile . | . . . AOE 17 | . . 17 Terrain Rammed . | . . . Walls Destroyed . | . . . Machines Disabled . | . . . Actions | -11 -10 -9 --------- Run | Scr Mat Mat Total 703 | 50 335 318 Wait 5 | . . 5 Move 526 | 33 277 216 Hop . | . . . Pick Up 35 | 7 17 11 Fast Attach . | . . . Attach 29 | 6 7 16 Detach 9 | . 6 3 Swap 1 | . 1 . Drop 12 | 1 8 3 Fire 75 | 1 15 59 Melee . | . . . Ram 9 | . 4 5 Kick 2 | 2 . . Crush . | . . . Escape Stasis . | . . . Rewire . | . . . Trap . | . . . Miscellaneous . | . . . Route ------- -11/Scrapyard -10/Materials -9/Materials History --------- Turn | Location | Event 13 | -11/Scrapyard | Discovered new exit (range 16) 55 | -11/Scrapyard | Entered Materials 168 | -10/Materials | Core integrity fell below 50% 305 | -10/Materials | Build established: Mutant 344 | -10/Materials | Discovered new exit (range 3) 424 | -10/Materials | Entered another Materials area 424 | -9/Materials | Evolved 2 slots: Propulsion x2 592 | -9/Materials | Lost 6 parts (1p3n2w) 857 | -9/Materials | Core integrity fell below 50% 893 | -9/Materials | Core integrity fell below 20% 919 | -9/Materials | Destroyed by Y-45 Defender with Beam Rifle Last Messages --------------- U-05 Engineer builds a Wall. R-06 Scavenger collects Ion Engine. U-05 Engineer lays Concrete. Slammed into Y-45 Defender. U-05 Engineer builds a Wall. U-05 Engineer lays Concrete. U-05 Engineer builds a Wall. Slammed into Y-45 Defender. Plasma Cutter destroyed. U-05 Engineer lays Concrete. R-06 Scavenger collects Heat Sink. U-05 Engineer lays Concrete. Slammed into Y-45 Defender. U-05 Engineer builds a Wall. U-05 Engineer lays Concrete. Slammed into Y-45 Defender. U-05 Engineer lays Concrete. U-05 Engineer builds a Wall. Plasma Cutter destroyed. U-05 Engineer lays Concrete. Map ----- +----------------------------------------------------+ | ?????????????????????????????????????? | | ?????????????????????????????????????? | | ?????????????????????????????????????? | | ?????????????????????????????????????? | | ?????????????????????????????????????? | | ?????????????????????????????????????? | | ?????????????????????????????????????? | | ?????????????????? ??????????????????? | | ?????????????????? ???? ?????????????? | | ???????????????? ??? #????????????? | | ???????????????? ??? #????????????? | | ????????????????" """ #????????????? | | ????????????????" """ #????????????? | | ???????????????"" """ *#????????????? | | ???????????????? #????????????? | | ????????????????? #????????????? | | ????????????????? #????????????? | | ?????????????????? #????????????? | | ????????????###+### #????????????? | | ????????????# # #????????????? | | ????????????#||| # #????????????? | | ????????????#||| # #????????????? | | ????????????#| # #????????????? | | ????????????# # #????????????? | | ??????????#### # =#????????????? | | ??????????# @u ###!=[ =#????????? ##? | | ??????????# !Y r *#### | | ??????????# u !%*%! %% | | ??????????# u %!t####### | | ??????????# r#############????????? | | ??????????## # % ! ########?? | | ???????????# w## # #?? | | ???????????# ## ?# """#?? | | ???????????# ## ?# """### | | ???????????# ## ?# """## | | ??#######??# ## ???? ?# | | ??# #### ###+#############/#### | | ??# # | | ??# + | | ??# # | | ??# #####+###### ####+######+#### | | ??## ## ## # ## # | | ???# ## ## # """ ##! "" ## | | ???# ## ## # "Y ## T" #? | | ???# ## +[!# """ ## "" #? | | ???# ## ##=# ## #? | | ???# ## ## #! ## ! #? | | ???# ## ##*#####+####+###### | | ???# ## ##=##### #??# ### | | ???# ############# *=#??# #"" "" | +----------------------------------------------------+ Best States ------------- Heat Dissipation 28 Energy Generation 14 Energy Capacity 160 Matter Stores 293 Matter Capacity 300 Sight Range 16 Terrain Scan Density 10 Additional Mass Support 6 Armor Coverage 150 Evasion (%) 40 Item Schematics ----------------- None Robot Schematics ------------------ None Fabricated ------------ Nothing Alien Tech Used ----------------- None Achievements -------------- None Challenges ------------ None Game ------ Seed BoreAdvancedAmplifier Manual? 0 Play Time 00:14:05 Cumulative 5.5 hours Start 2021.12.24 @ 11:04:30 End 2021.12.24 @ 11:16:01 Sessions 1 Manual Loads 0 Difficulty Rogue Special Mode None Game No. 6 Rogue 6 Adventurer 0 Explorer 0 Win Type - Total 0 Types 0/0/0/0/0/0/0/0/0 Lore% 11 Gallery% 16 Achievement% 12 Wizard Run 0 Options --------- ASCII 0 Keyboard 1 Movement Numpad Keybinds 0 Fullscreen 1 Font 24/Proggy Map View 76x50 Tactical HUD 0 Map Filters NONE Filters NONE Steam 1 RUN: 4dd2a7af-e040-4c40-abc3-c44bf69375a9